[Event "Titled Tuesday Blitz February 21 Late 2023"]
[White "Chigaev, Maksim"]
[Black "Paravyan, David"]
[WhiteFideId "4108116"]
[BlackFideId "4194985"]
[WhiteElo "2628"]
[BlackElo "2601"]
[Result "0-1"]
[Round "09"]
[TimeControl "180+2"]
[Date "2023.02.21"]
[WhiteClock "0:00:06"]
[BlackClock "0:00:04"]

1. Nf3 {[%clk 0:03:00]}  Nf6 {[%clk 0:02:59]} 2. c4 {[%clk 0:03:01]}  c5 {[%clk 0:02:59]} 3. b3 {[%clk 0:02:58]}  d5 {[%clk 0:02:58]} 4. cxd5 {[%clk 0:02:54]}  Nxd5 {[%clk 0:02:59]} 5. Nc3 {[%clk 0:02:51]}  Nxc3 {[%clk 0:02:54]} 6. dxc3 {[%clk 0:02:52]}  Qxd1+ {[%clk 0:02:54]} 7. Kxd1 {[%clk 0:02:50]}  b6 {[%clk 0:02:46]} 8. e4 {[%clk 0:02:49]}  Bb7 {[%clk 0:02:46]} 9. Nd2 {[%clk 0:02:48]}  g6 {[%clk 0:02:46]} 10. f3 {[%clk 0:02:47]}  Bg7 {[%clk 0:02:45]} 11. Kc2 {[%clk 0:02:47]}  Nc6 {[%clk 0:02:43]} 12. Bb2 {[%clk 0:02:43]}  O-O-O {[%clk 0:02:39]} 13. Nc4 {[%clk 0:02:43]}  Ne5 {[%clk 0:02:25]} 14. Ne3 {[%clk 0:02:20]}  Rd6 {[%clk 0:02:11]} 15. Be2 {[%clk 0:01:31]}  Bh6 {[%clk 0:02:11]} 16. Bc1 {[%clk 0:01:32]}  Rhd8 {[%clk 0:01:44]} 17. Rd1 {[%clk 0:01:20]}  Rxd1 {[%clk 0:01:42]} 18. Nxd1 {[%clk 0:01:21]}  Bxc1 {[%clk 0:01:41]} 19. Rxc1 {[%clk 0:01:22]}  f5 {[%clk 0:01:33]} 20. exf5 {[%clk 0:01:15]}  gxf5 {[%clk 0:01:34]} 21. Nf2 {[%clk 0:01:00]}  Rg8 {[%clk 0:01:11]} 22. Bf1 {[%clk 0:01:01]}  Ng6 {[%clk 0:01:09]} 23. Re1 {[%clk 0:01:01]}  Rg7 {[%clk 0:00:52]} 24. Bd3 {[%clk 0:00:51]}  Nh4 {[%clk 0:00:51]} 25. g3 {[%clk 0:00:52]}  Nxf3 {[%clk 0:00:51]} 26. Bxf5+ {[%clk 0:00:49]}  Kc7 {[%clk 0:00:51]} 27. Re3 {[%clk 0:00:18]}  Nxh2 {[%clk 0:00:50]} 28. g4 {[%clk 0:00:19]}  Rf7 {[%clk 0:00:24]} 29. Nd3 {[%clk 0:00:09]}  Nf1 {[%clk 0:00:20]} 30. Rh3 {[%clk 0:00:05]}  Bg2 {[%clk 0:00:20]} 31. Rxh7 {[%clk 0:00:04]}  Rxh7 {[%clk 0:00:17]} 32. Bxh7 {[%clk 0:00:05]}  Ne3+ {[%clk 0:00:17]} 33. Kd2 {[%clk 0:00:05]}  Nxg4 {[%clk 0:00:17]} 34. Nf4 {[%clk 0:00:06]}  Bc6 {[%clk 0:00:17]} 35. Bf5 {[%clk 0:00:06]}  Nf6 {[%clk 0:00:17]} 36. Ke3 {[%clk 0:00:07]}  Nd5+ {[%clk 0:00:11]} 37. Nxd5+ {[%clk 0:00:06]}  Bxd5 {[%clk 0:00:12]} 38. c4 {[%clk 0:00:03]}  Bf7 {[%clk 0:00:11]} 39. Kf4 {[%clk 0:00:04]}  Kd6 {[%clk 0:00:11]} 40. Be4 {[%clk 0:00:04]}  Be6 {[%clk 0:00:10]} 41. Bd3 {[%clk 0:00:05]}  Bd7 {[%clk 0:00:09]} 42. Be2 {[%clk 0:00:05]}  Be8 {[%clk 0:00:08]} 43. Bd3 {[%clk 0:00:05]}  Ke6 {[%clk 0:00:09]} 44. Bf5+ {[%clk 0:00:05]}  Kf6 {[%clk 0:00:09]} 45. Bd3 {[%clk 0:00:06]}  e5+ {[%clk 0:00:08]} 46. Ke3 {[%clk 0:00:05]}  Bg6 {[%clk 0:00:07]} 47. Be2 {[%clk 0:00:05]}  Bb1 {[%clk 0:00:07]} 48. a4 {[%clk 0:00:05]}  Kf5 {[%clk 0:00:06]} 49. Bd1 {[%clk 0:00:04]}  Kg5 {[%clk 0:00:05]} 50. Be2 {[%clk 0:00:04]}  Kh4 {[%clk 0:00:04]} 51. Bd1 {[%clk 0:00:04]}  Kg3 {[%clk 0:00:04]} 52. Be2 {[%clk 0:00:05]}  Bc2 {[%clk 0:00:04]} 53. Bf1 {[%clk 0:00:03]}  Bxb3 {[%clk 0:00:04]} 54. Ke4 {[%clk 0:00:04]}  Kf2 {[%clk 0:00:04]} 55. Bd3 {[%clk 0:00:03]}  Bxa4 {[%clk 0:00:04]} 56. Kxe5 {[%clk 0:00:03]}  Ke3 {[%clk 0:00:04]} 57. Bf1 {[%clk 0:00:04]}  Kd2 {[%clk 0:00:05]} 58. Kd6 {[%clk 0:00:04]}  Kc3 {[%clk 0:00:05]} 59. Kc7 {[%clk 0:00:05]}  Bb3 {[%clk 0:00:04]} 60. Kb7 {[%clk 0:00:05]}  Bxc4 {[%clk 0:00:04]} 61. Kxa7 {[%clk 0:00:06]}  Bxf1 {[%clk 0:00:04]} 0-1


[Site "https://www.chess.com"]

[Event "Titled Tuesday Blitz February 21 Late 2023"]
[White "KhalilMousavi98"]
[Black "Nihal Sarin"]
[BlackFideId "25092340"]
[WhiteElo "2871"]
[BlackElo "2673"]
[Result "0-1"]
[Round "09"]
[TimeControl "180+2"]
[Date "2023.02.21"]
[WhiteClock "0:00:13"]
[BlackClock "0:00:33"]

1. e4 {[%clk 0:03:00]}  e5 {[%clk 0:02:59]} 2. Nf3 {[%clk 0:03:00]}  Nc6 {[%clk 0:02:58]} 3. Bb5 {[%clk 0:03:01]}  a6 {[%clk 0:02:55]} 4. Ba4 {[%clk 0:03:01]}  Nf6 {[%clk 0:02:55]} 5. Nc3 {[%clk 0:03:01]}  Bc5 {[%clk 0:02:54]} 6. d3 {[%clk 0:02:59]}  d6 {[%clk 0:02:54]} 7. a3 {[%clk 0:02:55]}  O-O {[%clk 0:02:54]} 8. Bg5 {[%clk 0:02:46]}  h6 {[%clk 0:02:53]} 9. Bh4 {[%clk 0:02:45]}  Nd4 {[%clk 0:02:48]} 10. Nxd4 {[%clk 0:02:41]}  Bxd4 {[%clk 0:02:49]} 11. O-O {[%clk 0:02:36]}  g5 {[%clk 0:02:46]} 12. Bg3 {[%clk 0:02:36]}  h5 {[%clk 0:02:46]} 13. h3 {[%clk 0:02:19]}  h4 {[%clk 0:02:43]} 14. Bh2 {[%clk 0:02:18]}  g4 {[%clk 0:02:44]} 15. Kh1 {[%clk 0:02:14]}  Kg7 {[%clk 0:02:37]} 16. Ne2 {[%clk 0:02:02]}  Bb6 {[%clk 0:02:34]} 17. f4 {[%clk 0:01:59]}  gxh3 {[%clk 0:02:31]} 18. fxe5 {[%clk 0:01:48]}  hxg2+ {[%clk 0:02:28]} 19. Kxg2 {[%clk 0:01:48]}  Ng4 {[%clk 0:02:29]} 20. Kh1 {[%clk 0:01:35]}  dxe5 {[%clk 0:02:21]} 21. Bg1 {[%clk 0:01:31]}  Qg5 {[%clk 0:02:12]} 22. Bxb6 {[%clk 0:01:26]}  cxb6 {[%clk 0:02:13]} 23. Bb3 {[%clk 0:01:10]}  Ne3 {[%clk 0:01:46]} 24. Rg1 {[%clk 0:01:05]}  Bg4 {[%clk 0:01:46]} 25. Qe1 {[%clk 0:00:50]}  f5 {[%clk 0:01:32]} 26. Nc3 {[%clk 0:00:37]}  Kh6 {[%clk 0:01:06]} 27. Nd5 {[%clk 0:00:16]}  Nxd5 {[%clk 0:00:31]} 28. Bxd5 {[%clk 0:00:14]}  Bf3+ {[%clk 0:00:32]} 29. Kh2 {[%clk 0:00:14]}  Qf4+ {[%clk 0:00:32]} 30. Kh3 {[%clk 0:00:13]}  Bg4+ {[%clk 0:00:33]} 0-1


[Site "https://www.chess.com"]

[Event "Titled Tuesday Blitz February 21 Late 2023"]
[White "Sanal, Vahap"]
[Black "Sarana, Alexey"]
[WhiteFideId "6300545"]
[BlackFideId "24133795"]
[WhiteElo "2600"]
[BlackElo "2685"]
[Result "1-0"]
[Round "09"]
[TimeControl "180+2"]
[Date "2023.02.21"]
[WhiteClock "0:00:18"]
[BlackClock "0:00:02"]

1. e4 {[%clk 0:02:57]}  e5 {[%clk 0:02:47]} 2. Nc3 {[%clk 0:02:52]}  Nf6 {[%clk 0:02:46]} 3. Bc4 {[%clk 0:02:51]}  Nxe4 {[%clk 0:02:43]} 4. Qh5 {[%clk 0:02:49]}  Nd6 {[%clk 0:02:43]} 5. Qxe5+ {[%clk 0:02:49]}  Qe7 {[%clk 0:02:43]} 6. Qxe7+ {[%clk 0:02:49]}  Bxe7 {[%clk 0:02:44]} 7. Be2 {[%clk 0:02:50]}  Nf5 {[%clk 0:02:37]} 8. Nf3 {[%clk 0:02:48]}  c6 {[%clk 0:02:37]} 9. g4 {[%clk 0:02:48]}  Nh4 {[%clk 0:02:36]} 10. Nxh4 {[%clk 0:02:49]}  Bxh4 {[%clk 0:02:37]} 11. Ne4 {[%clk 0:02:49]}  Be7 {[%clk 0:02:34]} 12. d4 {[%clk 0:02:50]}  d5 {[%clk 0:02:34]} 13. Ng3 {[%clk 0:02:50]}  g6 {[%clk 0:02:32]} 14. Bf4 {[%clk 0:02:47]}  Nd7 {[%clk 0:02:32]} 15. h4 {[%clk 0:02:41]}  Nf8 {[%clk 0:02:22]} 16. g5 {[%clk 0:02:39]}  h6 {[%clk 0:02:09]} 17. gxh6 {[%clk 0:02:12]}  Ne6 {[%clk 0:02:09]} 18. Be3 {[%clk 0:02:13]}  Bf8 {[%clk 0:01:48]} 19. h5 {[%clk 0:02:12]}  g5 {[%clk 0:01:47]} 20. Nf5 {[%clk 0:02:10]}  f6 {[%clk 0:01:43]} 21. Bd3 {[%clk 0:02:07]}  Bxh6 {[%clk 0:01:36]} 22. O-O-O {[%clk 0:02:06]}  Bf8 {[%clk 0:01:14]} 23. h6 {[%clk 0:02:06]}  Kf7 {[%clk 0:01:09]} 24. h7 {[%clk 0:02:03]}  Bd7 {[%clk 0:01:09]} 25. Nh6+ {[%clk 0:01:56]}  Kg7 {[%clk 0:01:06]} 26. Nf5+ {[%clk 0:01:56]}  Kf7 {[%clk 0:01:07]} 27. Rdg1 {[%clk 0:01:55]}  Re8 {[%clk 0:01:04]} 28. Nh6+ {[%clk 0:01:48]}  Kg7 {[%clk 0:00:53]} 29. f4 {[%clk 0:01:42]}  Nc5 {[%clk 0:00:25]} 30. dxc5 {[%clk 0:01:35]}  Rxe3 {[%clk 0:00:25]} 31. fxg5 {[%clk 0:01:36]}  f5 {[%clk 0:00:14]} 32. Bxf5 {[%clk 0:01:33]}  Be8 {[%clk 0:00:08]} 33. Bd3 {[%clk 0:01:34]}  Bg6 {[%clk 0:00:08]} 34. Rf1 {[%clk 0:01:20]}  Be7 {[%clk 0:00:06]} 35. Bxg6 {[%clk 0:01:07]}  Kxg6 {[%clk 0:00:07]} 36. Nf5 {[%clk 0:01:07]}  Re5 {[%clk 0:00:05]} 37. Nh4+ {[%clk 0:00:57]}  Kg7 {[%clk 0:00:04]} 38. Nf5+ {[%clk 0:00:56]}  Kg6 {[%clk 0:00:05]} 39. Nxe7+ {[%clk 0:00:23]}  Rxe7 {[%clk 0:00:06]} 40. Rf6+ {[%clk 0:00:21]}  Kxg5 {[%clk 0:00:06]} 41. Rfh6 {[%clk 0:00:21]}  a5 {[%clk 0:00:07]} 42. a4 {[%clk 0:00:21]}  Rf7 {[%clk 0:00:03]} 43. b3 {[%clk 0:00:21]}  Re7 {[%clk 0:00:04]} 44. Kd2 {[%clk 0:00:21]}  Rf7 {[%clk 0:00:04]} 45. R1h5+ {[%clk 0:00:21]}  Kg4 {[%clk 0:00:04]} 46. Kd3 {[%clk 0:00:20]}  Re7 {[%clk 0:00:04]} 47. Rh4+ {[%clk 0:00:19]}  Kg5 {[%clk 0:00:04]} 48. R4h5+ {[%clk 0:00:19]}  Kg4 {[%clk 0:00:04]} 49. Rh1 {[%clk 0:00:20]}  Kg5 {[%clk 0:00:05]} 50. Kc3 {[%clk 0:00:20]}  Re3+ {[%clk 0:00:04]} 51. Kd2 {[%clk 0:00:20]}  Re7 {[%clk 0:00:05]} 52. c3 {[%clk 0:00:20]}  Rf7 {[%clk 0:00:05]} 53. b4 {[%clk 0:00:21]}  axb4 {[%clk 0:00:05]} 54. cxb4 {[%clk 0:00:21]}  Rf4 {[%clk 0:00:06]} 55. R1h5+ {[%clk 0:00:19]}  Kg4 {[%clk 0:00:06]} 56. Rh4+ {[%clk 0:00:20]}  Kg5 {[%clk 0:00:07]} 57. R6h5+ {[%clk 0:00:16]}  Kg6 {[%clk 0:00:07]} 58. Rxf4 {[%clk 0:00:17]}  Kxh5 {[%clk 0:00:07]} 59. Rf7 {[%clk 0:00:18]}  Kg6 {[%clk 0:00:03]} 60. Rxb7 {[%clk 0:00:18]}  Rf8 {[%clk 0:00:02]} 61. b5 {[%clk 0:00:18]} 1-0


[Site "https://www.chess.com"]

[Event "Titled Tuesday Blitz February 21 Late 2023"]
[White "Rasulov, Vugar"]
[Black "Samsonkin, Artiom"]
[WhiteFideId "13402390"]
[BlackFideId "13503111"]
[WhiteElo "2523"]
[BlackElo "2420"]
[Result "1/2-1/2"]
[Round "09"]
[TimeControl "180+2"]
[Date "2023.02.21"]
[WhiteClock "0:00:12"]
[BlackClock "0:00:12"]

1. d4 {[%clk 0:02:55]}  Nf6 {[%clk 0:02:58]} 2. c4 {[%clk 0:02:56]}  e6 {[%clk 0:02:58]} 3. Nc3 {[%clk 0:02:55]}  Bb4 {[%clk 0:02:59]} 4. Nf3 {[%clk 0:02:52]}  b6 {[%clk 0:02:52]} 5. Bg5 {[%clk 0:02:51]}  h6 {[%clk 0:02:49]} 6. Bh4 {[%clk 0:02:49]}  g5 {[%clk 0:02:49]} 7. Bg3 {[%clk 0:02:49]}  Ne4 {[%clk 0:02:50]} 8. Qc2 {[%clk 0:02:43]}  Bb7 {[%clk 0:02:49]} 9. e3 {[%clk 0:02:40]}  Bxc3+ {[%clk 0:02:46]} 10. bxc3 {[%clk 0:02:40]}  d6 {[%clk 0:02:38]} 11. Bd3 {[%clk 0:02:38]}  f5 {[%clk 0:02:23]} 12. d5 {[%clk 0:02:31]}  exd5 {[%clk 0:02:21]} 13. cxd5 {[%clk 0:02:28]}  Bxd5 {[%clk 0:02:19]} 14. c4 {[%clk 0:02:24]}  Bb7 {[%clk 0:02:07]} 15. Nd4 {[%clk 0:02:23]}  Qf6 {[%clk 0:02:08]} 16. O-O {[%clk 0:02:22]}  Nd7 {[%clk 0:02:08]} 17. f3 {[%clk 0:02:08]}  Nxg3 {[%clk 0:02:08]} 18. hxg3 {[%clk 0:02:08]}  O-O-O {[%clk 0:02:08]} 19. Bxf5 {[%clk 0:02:06]}  Kb8 {[%clk 0:02:07]} 20. Be4 {[%clk 0:01:52]}  Nc5 {[%clk 0:01:34]} 21. Bxb7 {[%clk 0:01:41]}  Kxb7 {[%clk 0:01:35]} 22. g4 {[%clk 0:01:31]}  Rde8 {[%clk 0:01:29]} 23. Qf5 {[%clk 0:01:29]}  Qe5 {[%clk 0:01:03]} 24. Qxe5 {[%clk 0:01:27]}  Rxe5 {[%clk 0:00:49]} 25. e4 {[%clk 0:01:27]}  h5 {[%clk 0:00:46]} 26. gxh5 {[%clk 0:01:27]}  Rxh5 {[%clk 0:00:47]} 27. Kf2 {[%clk 0:01:26]}  Nd3+ {[%clk 0:00:34]} 28. Kg3 {[%clk 0:01:24]}  Rc5 {[%clk 0:00:28]} 29. Rh1 {[%clk 0:01:05]}  Rxh1 {[%clk 0:00:27]} 30. Rxh1 {[%clk 0:01:06]}  Rxc4 {[%clk 0:00:27]} 31. Ne6 {[%clk 0:01:07]}  g4 {[%clk 0:00:18]} 32. Rh7 {[%clk 0:00:58]}  gxf3 {[%clk 0:00:18]} 33. gxf3 {[%clk 0:00:59]}  Ne5 {[%clk 0:00:16]} 34. f4 {[%clk 0:00:54]}  Rc3+ {[%clk 0:00:16]} 35. Kh4 {[%clk 0:00:51]}  Ng6+ {[%clk 0:00:14]} 36. Kg5 {[%clk 0:00:50]}  Nxf4 {[%clk 0:00:13]} 37. Kxf4 {[%clk 0:00:49]}  a5 {[%clk 0:00:14]} 38. a4 {[%clk 0:00:43]}  b5 {[%clk 0:00:11]} 39. axb5 {[%clk 0:00:41]}  Kb6 {[%clk 0:00:12]} 40. Nd4 {[%clk 0:00:39]}  Rd3 {[%clk 0:00:11]} 41. Ne6 {[%clk 0:00:34]}  Rc3 {[%clk 0:00:11]} 42. Rh8 {[%clk 0:00:29]}  Kxb5 {[%clk 0:00:10]} 43. Rb8+ {[%clk 0:00:30]}  Kc6 {[%clk 0:00:10]} 44. Nd4+ {[%clk 0:00:23]}  Kd7 {[%clk 0:00:10]} 45. Ra8 {[%clk 0:00:21]}  Rc4 {[%clk 0:00:09]} 46. Ke3 {[%clk 0:00:21]}  a4 {[%clk 0:00:09]} 47. Kd3 {[%clk 0:00:21]}  Rb4 {[%clk 0:00:09]} 48. Kc3 {[%clk 0:00:21]}  c5 {[%clk 0:00:10]} 49. Ra7+ {[%clk 0:00:20]}  Kc8 {[%clk 0:00:11]} 50. Nf5 {[%clk 0:00:18]}  Kb8 {[%clk 0:00:10]} 51. Re7 {[%clk 0:00:18]}  a3 {[%clk 0:00:09]} 52. Re8+ {[%clk 0:00:14]}  Kb7 {[%clk 0:00:08]} 53. Nxd6+ {[%clk 0:00:14]}  Kc6 {[%clk 0:00:09]} 54. Nc4 {[%clk 0:00:13]}  Ra4 {[%clk 0:00:08]} 55. Rc8+ {[%clk 0:00:06]}  Kb7 {[%clk 0:00:06]} 56. Nd6+ {[%clk 0:00:06]}  Kb6 {[%clk 0:00:06]} 57. Nc4+ {[%clk 0:00:03]}  Kb7 {[%clk 0:00:07]} 58. Nd6+ {[%clk 0:00:02]}  Kb6 {[%clk 0:00:07]} 59. Rb8+ {[%clk 0:00:01]}  Kc7 {[%clk 0:00:07]} 60. Rb1 {[%clk 0:00:01]}  Kxd6 {[%clk 0:00:07]} 61. Ra1 {[%clk 0:00:02]}  a2 {[%clk 0:00:08]} 62. Kb3 {[%clk 0:00:02]}  Ra5 {[%clk 0:00:08]} 63. Rxa2 {[%clk 0:00:01]}  c4+ {[%clk 0:00:08]} 64. Kb2 {[%clk 0:00:02]}  Rxa2+ {[%clk 0:00:09]} 65. Kxa2 {[%clk 0:00:02]}  Ke5 {[%clk 0:00:10]} 66. Kb2 {[%clk 0:00:03]}  Kxe4 {[%clk 0:00:10]} 67. Kc3 {[%clk 0:00:04]}  Kd5 {[%clk 0:00:10]} 68. Kc2 {[%clk 0:00:04]}  Kd4 {[%clk 0:00:11]} 69. Kd2 {[%clk 0:00:05]}  Kc5 {[%clk 0:00:11]} 70. Kc3 {[%clk 0:00:06]}  Kb5 {[%clk 0:00:12]} 71. Kc2 {[%clk 0:00:07]}  Kb4 {[%clk 0:00:13]} 72. Kb2 {[%clk 0:00:07]}  Kc5 {[%clk 0:00:13]} 73. Kc3 {[%clk 0:00:07]}  Kd5 {[%clk 0:00:13]} 74. Kc2 {[%clk 0:00:08]}  Kd4 {[%clk 0:00:14]} 75. Kd2 {[%clk 0:00:09]}  c3+ {[%clk 0:00:14]} 76. Kc2 {[%clk 0:00:10]}  Kc4 {[%clk 0:00:15]} 77. Kc1 {[%clk 0:00:10]}  Kb4 {[%clk 0:00:16]} 78. Kc2 {[%clk 0:00:11]}  Kc4 {[%clk 0:00:16]} 79. Kc1 {[%clk 0:00:11]}  Kd3 {[%clk 0:00:17]} 80. Kd1 {[%clk 0:00:12]}  Kd4 {[%clk 0:00:17]} 81. Kc2 {[%clk 0:00:12]}  Kc4 {[%clk 0:00:12]} 1/2-1/2


[Site "https://www.chess.com"]

[Event "Titled Tuesday Blitz February 21 Late 2023"]
[White "Ibarra Jerez, Jose Carlos"]
[Black "Pichot, Alan"]
[WhiteFideId "2226332"]
[BlackFideId "110973"]
[WhiteElo "2563"]
[BlackElo "2638"]
[Result "0-1"]
[Round "09"]
[TimeControl "180+2"]
[Date "2023.02.21"]
[WhiteClock "0:00:01"]
[BlackClock "0:00:03"]

1. e4 {[%clk 0:03:00]}  c5 {[%clk 0:02:59]} 2. Ne2 {[%clk 0:02:57]}  Nc6 {[%clk 0:02:58]} 3. Nbc3 {[%clk 0:02:53]}  e6 {[%clk 0:02:56]} 4. d4 {[%clk 0:02:54]}  cxd4 {[%clk 0:02:57]} 5. Nxd4 {[%clk 0:02:54]}  Qc7 {[%clk 0:02:57]} 6. g4 {[%clk 0:02:53]}  a6 {[%clk 0:02:52]} 7. Be3 {[%clk 0:02:52]}  h6 {[%clk 0:02:34]} 8. f3 {[%clk 0:02:38]}  Nf6 {[%clk 0:02:25]} 9. Qd2 {[%clk 0:02:36]}  b5 {[%clk 0:02:23]} 10. O-O-O {[%clk 0:02:31]}  Bb7 {[%clk 0:02:22]} 11. Kb1 {[%clk 0:02:29]}  Ne5 {[%clk 0:02:16]} 12. Bd3 {[%clk 0:02:17]}  Rc8 {[%clk 0:02:13]} 13. h4 {[%clk 0:02:13]}  Nxd3 {[%clk 0:02:01]} 14. cxd3 {[%clk 0:02:13]}  Bc5 {[%clk 0:01:35]} 15. Nb3 {[%clk 0:02:00]}  Be7 {[%clk 0:01:28]} 16. Rc1 {[%clk 0:01:58]}  Qb8 {[%clk 0:01:25]} 17. g5 {[%clk 0:01:55]}  Nh5 {[%clk 0:01:23]} 18. f4 {[%clk 0:01:53]}  g6 {[%clk 0:01:14]} 19. Rhg1 {[%clk 0:01:50]}  hxg5 {[%clk 0:01:13]} 20. hxg5 {[%clk 0:01:49]}  Ba8 {[%clk 0:00:38]} 21. Bd4 {[%clk 0:01:42]}  O-O {[%clk 0:00:35]} 22. Rh1 {[%clk 0:01:36]}  f6 {[%clk 0:00:20]} 23. Rxh5 {[%clk 0:01:20]}  gxh5 {[%clk 0:00:20]} 24. gxf6 {[%clk 0:01:21]}  Bxf6 {[%clk 0:00:19]} 25. Qg2+ {[%clk 0:01:20]}  Kf7 {[%clk 0:00:19]} 26. Bxf6 {[%clk 0:01:19]}  Kxf6 {[%clk 0:00:18]} 27. Qg5+ {[%clk 0:01:18]}  Kf7 {[%clk 0:00:18]} 28. Rg1 {[%clk 0:01:04]}  Ke8 {[%clk 0:00:18]} 29. f5 {[%clk 0:00:57]}  Qe5 {[%clk 0:00:17]} 30. Qxh5+ {[%clk 0:00:31]}  Kd8 {[%clk 0:00:17]} 31. Qh4+ {[%clk 0:00:31]}  Kc7 {[%clk 0:00:14]} 32. d4 {[%clk 0:00:32]}  Qf6 {[%clk 0:00:12]} 33. Qg3+ {[%clk 0:00:30]}  d6 {[%clk 0:00:11]} 34. Nc5 {[%clk 0:00:25]}  exf5 {[%clk 0:00:07]} 35. Nxa6+ {[%clk 0:00:23]}  Kb6 {[%clk 0:00:08]} 36. Nb4 {[%clk 0:00:23]}  Qxd4 {[%clk 0:00:04]} 37. Rd1 {[%clk 0:00:21]}  Bxe4+ {[%clk 0:00:04]} 38. Ka1 {[%clk 0:00:19]}  Qxb4 {[%clk 0:00:04]} 39. Rxd6+ {[%clk 0:00:17]}  Kb7 {[%clk 0:00:05]} 40. Rd7+ {[%clk 0:00:07]}  Ka8 {[%clk 0:00:05]} 41. Qg7 {[%clk 0:00:07]}  Qc5 {[%clk 0:00:05]} 42. a4 {[%clk 0:00:06]}  Bc6 {[%clk 0:00:05]} 43. Re7 {[%clk 0:00:03]}  Rg8 {[%clk 0:00:05]} 44. Qf7 {[%clk 0:00:03]}  Rg1+ {[%clk 0:00:05]} 45. Ka2 {[%clk 0:00:04]}  Qc4+ {[%clk 0:00:06]} 46. Qxc4 {[%clk 0:00:03]}  bxc4 {[%clk 0:00:07]} 47. Rf7 {[%clk 0:00:03]}  Re8 {[%clk 0:00:05]} 48. Rf6 {[%clk 0:00:01]}  Kb7 {[%clk 0:00:04]} 49. Rf7+ {[%clk 0:00:01]}  Kb6 {[%clk 0:00:05]} 50. Rxf5 {[%clk 0:00:02]}  Ree1 {[%clk 0:00:05]} 51. a5+ {[%clk 0:00:03]}  Ka6 {[%clk 0:00:05]} 52. Ka3 {[%clk 0:00:04]}  Rg2 {[%clk 0:00:05]} 53. Kb4 {[%clk 0:00:03]}  Rxb2+ {[%clk 0:00:05]} 54. Kc5 {[%clk 0:00:04]}  Bb7 {[%clk 0:00:03]} 55. Rf6+ {[%clk 0:00:01]}  Kxa5 {[%clk 0:00:04]} 56. Rf7 {[%clk 0:00:02]}  Re5+ {[%clk 0:00:03]} 57. Kd4 {[%clk 0:00:02]}  Rh5 {[%clk 0:00:03]} 58. Rf1 {[%clk 0:00:03]}  Bc6 {[%clk 0:00:02]} 59. Ra1+ {[%clk 0:00:02]}  Kb6 {[%clk 0:00:03]} 60. Rc1 {[%clk 0:00:01]}  Rd2+ {[%clk 0:00:03]} 0-1


[Site "https://www.chess.com"]

[Event "Titled Tuesday Blitz February 21 Late 2023"]
[White "Kamsky, Gata"]
[Black "Yuan, Qingyu"]
[WhiteFideId "2000024"]
[BlackFideId "8609772"]
[WhiteElo "2665"]
[BlackElo "2373"]
[Result "1-0"]
[Round "09"]
[TimeControl "180+2"]
[Date "2023.02.21"]
[WhiteClock "0:00:49"]
[BlackClock "0:00:02"]

1. d4 {[%clk 0:03:00]}  d5 {[%clk 0:02:58]} 2. Bf4 {[%clk 0:02:59]}  Nf6 {[%clk 0:02:58]} 3. e3 {[%clk 0:02:58]}  c5 {[%clk 0:02:58]} 4. c3 {[%clk 0:02:57]}  Nc6 {[%clk 0:02:57]} 5. Nd2 {[%clk 0:02:57]}  cxd4 {[%clk 0:02:56]} 6. exd4 {[%clk 0:02:57]}  Bf5 {[%clk 0:02:57]} 7. Ngf3 {[%clk 0:02:57]}  e6 {[%clk 0:02:57]} 8. Bb5 {[%clk 0:02:57]}  Bd6 {[%clk 0:02:31]} 9. Bxd6 {[%clk 0:02:55]}  Qxd6 {[%clk 0:02:31]} 10. O-O {[%clk 0:02:46]}  O-O {[%clk 0:02:29]} 11. Re1 {[%clk 0:02:46]}  Qc7 {[%clk 0:02:21]} 12. Ne5 {[%clk 0:02:31]}  Nxe5 {[%clk 0:02:18]} 13. dxe5 {[%clk 0:02:31]}  Nd7 {[%clk 0:02:07]} 14. Bxd7 {[%clk 0:02:30]}  Qxd7 {[%clk 0:02:07]} 15. Nb3 {[%clk 0:02:29]}  Rac8 {[%clk 0:02:03]} 16. Nd4 {[%clk 0:02:28]}  Be4 {[%clk 0:01:59]} 17. Qg4 {[%clk 0:02:23]}  Qc7 {[%clk 0:01:50]} 18. f3 {[%clk 0:02:07]}  Bg6 {[%clk 0:01:46]} 19. h4 {[%clk 0:02:02]}  h6 {[%clk 0:01:41]} 20. h5 {[%clk 0:02:00]}  Bh7 {[%clk 0:01:40]} 21. Re2 {[%clk 0:01:57]}  Qb6 {[%clk 0:01:20]} 22. Kh2 {[%clk 0:01:52]}  Rc4 {[%clk 0:01:20]} 23. Qf4 {[%clk 0:01:48]}  Qa6 {[%clk 0:01:13]} 24. Rd2 {[%clk 0:01:41]}  Qa5 {[%clk 0:01:08]} 25. a3 {[%clk 0:01:38]}  Qc7 {[%clk 0:01:04]} 26. Re1 {[%clk 0:01:35]}  a6 {[%clk 0:01:00]} 27. g4 {[%clk 0:01:35]}  Qe7 {[%clk 0:00:59]} 28. Kh3 {[%clk 0:01:26]}  b5 {[%clk 0:00:59]} 29. Rg2 {[%clk 0:01:24]}  f6 {[%clk 0:00:43]} 30. exf6 {[%clk 0:01:11]}  Rxf6 {[%clk 0:00:44]} 31. Qe5 {[%clk 0:01:10]}  Rxd4 {[%clk 0:00:25]} 32. cxd4 {[%clk 0:01:07]}  Rxf3+ {[%clk 0:00:25]} 33. Rg3 {[%clk 0:01:06]}  Rxg3+ {[%clk 0:00:13]} 34. Kxg3 {[%clk 0:01:06]}  Be4 {[%clk 0:00:13]} 35. Rc1 {[%clk 0:01:04]}  Qf8 {[%clk 0:00:09]} 36. Qf4 {[%clk 0:01:03]}  Qd8 {[%clk 0:00:04]} 37. Rc6 {[%clk 0:01:01]}  e5 {[%clk 0:00:03]} 38. Qxe5 {[%clk 0:00:59]}  Qf8 {[%clk 0:00:02]} 39. Qf4 {[%clk 0:00:53]}  Qe8 {[%clk 0:00:03]} 40. Rc7 {[%clk 0:00:52]}  Qe6 {[%clk 0:00:02]} 41. Qe5 {[%clk 0:00:51]}  Qxe5+ {[%clk 0:00:02]} 42. dxe5 {[%clk 0:00:51]}  Kf8 {[%clk 0:00:03]} 43. Kf4 {[%clk 0:00:51]}  Bg2 {[%clk 0:00:03]} 44. Rd7 {[%clk 0:00:50]}  Ke8 {[%clk 0:00:03]} 45. e6 {[%clk 0:00:50]}  Be4 {[%clk 0:00:02]} 46. Rxg7 {[%clk 0:00:49]} 1-0


[Site "https://www.chess.com"]